bitfinex-derivatives/quotes_BTCF0:USTF0_20240830
["timestamp","ask_amount","ask_price","bid_price","bid_amount"]
[1724995631320,0.15210817,58839.0,58830.0,0.3608]
[1724995631620,0.084978,58836.0,58830.0,0.3608]
[1724995631822,0.13714661,58836.0,58830.0,0.3608]
[1724995632017,0.084978,58836.0,58830.0,0.3608]
[1724995632928,0.16636375,58839.0,58830.0,0.3608]
[1724995633129,0.06642419,58839.0,58830.0,0.3608]
[1724995633321,0.05216935,58838.0,58830.0,0.3608]
[1724995633521,0.05216935,58837.0,58830.0,0.3608]
[1724995633727,0.06616935,58836.0,58830.0,0.3608]
[1724995633928,0.014,58836.0,58830.0,0.3608]
[1724995634223,0.014,58836.0,58830.0,0.374461]
[1724995634427,0.014,58836.0,58835.0,0.3608]
[1724995634629,0.014,58836.0,58835.0,0.445779]
[1724995635133,0.014,58836.0,58830.0,0.459447]
[1724995635332,0.014,58836.0,58834.0,0.1574]
[1724995636035,0.014,58837.0,58834.0,0.1574]
[1724995636326,0.06616935,58837.0,58834.0,0.1574]
[1724995636529,0.009,58836.0,58834.0,0.1584]
[1724995637632,0.012,58836.0,58834.0,0.1584]
[1724995638129,0.06416935,58836.0,58834.0,0.001]
[1724995638339,0.06016935,58837.0,58834.0,0.001]
[1724995638524,0.008,58836.0,58834.0,0.002]
[1724995638830,0.008,58836.0,58834.0,0.001]
[1724995639032,0.016,58836.0,58834.0,0.002]
[1724995639326,0.06816935,58836.0,58834.0,0.002]
[1724995639533,0.06016935,58836.0,58834.0,0.002]
[1724995640030,0.06016935,58836.0,58834.0,0.001]
[1724995640225,0.05216935,58835.0,58834.0,0.002]
[1724995640538,0.015,58836.0,58834.0,0.002]
[1724995640936,0.016,58836.0,58834.0,0.002]
[1724995641934,0.017,58836.0,58834.0,0.002]
[1724995642232,0.27473874,58835.0,58834.0,0.002]
[1724995642532,0.27473874,58835.0,58823.0,0.51548]
[1724995642533,0.083989,58828.0,58823.0,0.3608]
[1724995642727,0.08499,58827.0,58823.0,0.3608]
[1724995642929,0.27203919,58827.0,58823.0,0.3608]
[1724995643125,0.05216935,58826.0,58823.0,0.3608]
[1724995643325,0.05116935,58826.0,58823.0,0.3608]
[1724995643537,0.18704919,58825.0,58823.0,0.3608]
[1724995643927,0.18413024,58826.0,58823.0,0.3608]
[1724995644235,0.2301,58830.0,58823.0,0.3608]
[1724995644425,0.18413024,58825.0,58823.0,0.3608]
[1724995644823,0.29,58826.0,58823.0,0.3608]
[1724995645025,0.009,58826.0,58823.0,0.3618]
[1724995645230,0.27688316,58825.0,58823.0,0.3618]
[1724995645425,0.19188916,58825.0,58823.0,0.3628]
[1724995645827,0.20188916,58825.0,58823.0,0.3628]
[1724995646937,0.20988916,58825.0,58823.0,0.3628]
[1724995647444,0.20888916,58825.0,58823.0,0.3628]
[1724995648240,0.05217438,58824.0,58823.0,0.3618]
[1724995648425,0.20788916,58825.0,58823.0,0.3628]
[1724995648625,0.05217438,58824.0,58823.0,0.3628]
[1724995648833,0.016,58825.0,58823.0,0.3628]
[1724995649621,0.008,58825.0,58823.0,0.3618]
[1724995649833,0.008,58824.0,58823.0,0.3628]
[1724995650036,0.05217203,58829.0,58824.0,0.51]
[1724995650235,0.00025484,58839.0,58828.0,0.6508]
[1724995650535,0.00025484,58839.0,58838.0,0.3608]
[1724995651034,0.19298652,58839.0,58838.0,0.3608]
[1724995651339,0.19298652,58839.0,58837.0,0.15468]
[1724995651728,0.24515855,58839.0,58837.0,0.15468]
[1724995652030,0.24615855,58839.0,58837.0,0.15468]
[1724995652233,0.25315855,58839.0,58838.0,0.001]
[1724995652723,0.25215855,58839.0,58838.0,0.001]
[1724995653231,0.19998652,58839.0,58838.0,0.001]
[1724995653928,0.48298652,58839.0,58834.0,0.3608]
[1724995654127,0.05217203,58838.0,58834.0,0.3608]
[1724995654435,0.18836698,58837.0,58834.0,0.3608]
[1724995654826,0.084979,58835.0,58834.0,0.3608]
[1724995655232,0.28069965,58835.0,58834.0,0.3618]
[1724995655433,0.57417168,58835.0,58834.0,0.3618]
[1724995655632,0.69457168,58835.0,58834.0,0.3628]
[1724995656138,0.48919268,58835.0,58834.0,0.3628]
[1724995656336,0.24789268,58835.0,58834.0,0.3628]
[1724995657135,0.24789268,58835.0,58834.0,0.3618]
[1724995657335,0.24889268,58835.0,58834.0,0.3628]
[1724995658138,0.05417203,58835.0,58834.0,0.3628]
[1724995658535,0.05317203,58835.0,58834.0,0.3628]
[1724995661139,0.05316597,58835.0,58834.0,0.3628]
[1724995661332,0.05316597,58835.0,58834.0,0.3608]
[1724995662034,0.32037947,58835.0,58834.0,0.3608]
[1724995664929,0.61037947,58835.0,58834.0,0.3608]
[1724995665133,0.61037947,58835.0,58834.0,0.3618]
[1724995665329,0.60937947,58835.0,58834.0,0.3618]
[1724995665539,0.61037947,58835.0,58834.0,0.3628]
[1724995666043,0.61038378,58835.0,58834.0,0.3628]
[1724995666441,1.72030378,58835.0,58834.0,0.002]
[1724995666646,0.50992,58834.0,58825.0,0.3608]
[1724995666852,0.084989,58828.0,58825.0,0.3608]
[1724995667146,0.083989,58828.0,58825.0,0.3608]
[1724995667443,0.19391892,58827.0,58825.0,0.3608]
[1724995667641,0.2460892,58827.0,58825.0,0.3608]
[1724995668742,0.2450892,58827.0,58825.0,0.3608]
[1724995669241,0.2480892,58827.0,58825.0,0.3618]
[1724995670142,0.2480892,58827.0,58825.0,0.3628]
[1724995670143,0.2500892,58827.0,58825.0,0.3628]
[1724995670549,0.05217028,58826.0,58825.0,0.3628]
[1724995670848,0.05217798,58826.0,58825.0,0.002]
[1724995671740,0.05217798,58826.0,58825.0,0.001]
[1724995671943,0.05517798,58826.0,58825.0,0.001]
[1724995672440,0.05517798,58826.0,58824.0,0.084995]
[1724995672441,0.05717798,58826.0,58824.0,0.084995]
[1724995672642,0.05217798,58825.0,58824.0,0.084995]
[1724995672837,0.05217798,58825.0,58824.0,0.445795]
[1724995673236,0.05217798,58825.0,58824.0,0.735795]
[1724995674248,0.004,58826.0,58825.0,0.084993]
[1724995674849,0.003,58826.0,58825.0,0.084993]
[1724995675046,0.001,58826.0,58825.0,0.084993]
[1724995675551,0.18605889,58826.0,58825.0,1.194993]
[1724995676054,0.18505889,58827.0,58826.0,0.084992]
[1724995676248,0.18505889,58827.0,58826.0,0.374992]
[1724995676548,0.05216741,58827.0,58826.0,1.484952]
[1724995677145,0.05216741,58838.0,58833.0,0.084981]
[1724995677356,0.05216741,58837.0,58836.0,0.3608]
[1724995677848,0.05216741,58838.0,58837.0,0.084976]
[1724995678355,0.05216741,58838.0,58836.0,0.3608]
[1724995678557,0.1196,58837.0,58836.0,0.3608]
[1724995678856,0.36974808,58837.0,58836.0,0.3618]
[1724995679156,0.36874808,58837.0,58836.0,0.3618]
[1724995679756,0.37074808,58837.0,58836.0,0.3628]
[1724995680445,0.36874808,58837.0,58836.0,0.3628]
[1724995680848,0.25014808,58837.0,58836.0,0.3628]
[1724995681056,0.05416741,58837.0,58836.0,0.3628]
[1724995681246,0.002,58837.0,58836.0,0.3628]
[1724995681845,0.1909115,58837.0,58836.0,0.3618]
[1724995682062,0.1919115,58837.0,58836.0,0.3628]
[1724995682255,0.001,58837.0,58836.0,0.3628]
[1724995682450,0.1919115,58837.0,58836.0,0.3628]
[1724995683348,0.2768875,58837.0,58836.0,0.3628]
[1724995683556,0.32905491,58837.0,58836.0,0.3628]
[1724995683749,0.57775491,58837.0,58836.0,0.3628]
[1724995684359,0.76281198,58837.0,58836.0,0.3628]
[1724995685651,0.57775491,58837.0,58836.0,0.3628]
[1724995686958,0.32905491,58837.0,58836.0,0.3628]
[1724995688360,0.32905491,58837.0,58836.0,0.37664948]
[1724995689163,0.32905401,58837.0,58836.0,0.37664948]
[1724995689354,0.39000931,58837.0,58836.0,0.37664948]
[1724995689951,0.30503331,58837.0,58836.0,0.37664948]
[1724995693558,0.24407801,58837.0,58836.0,0.37664948]
[1724995693755,0.37689807,58837.0,58836.0,0.37664948]
[1724995693973,0.46187407,58837.0,58836.0,0.3628]
[1724995694167,0.32905401,58837.0,58836.0,0.002]
[1724995698770,0.32905773,58837.0,58836.0,0.002]
[1724995701271,0.11834287,58837.0,58836.0,0.002]
[1724995701567,0.26007897,58837.0,58836.0,0.002]
[1724995701758,0.3122492,58837.0,58836.0,0.002]
[1724995701960,0.24607656,58837.0,58836.0,0.002]
[1724995702362,0.19390633,58837.0,58836.0,0.086977]
[1724995702764,0.17935792,58838.0,58836.0,0.086977]
[1724995703062,0.05217023,58838.0,58836.0,0.086977]
[1724995703262,0.17880499,58838.0,58836.0,0.086977]
[1724995704059,0.17880499,58838.0,58837.0,0.084976]
[1724995704659,0.17980499,58838.0,58837.0,0.084976]
[1724995705266,0.17880499,58838.0,58837.0,0.085976]
[1724995705462,0.001,58838.0,58837.0,0.086976]
[1724995705773,0.001,58838.0,58837.0,0.376976]
[1724995708369,0.004,58851.0,58838.0,0.50988]
[1724995708570,0.004,58857.0,58852.0,0.084954]
[1724995708878,0.24437927,58856.0,58855.0,0.3608]
[1724995709263,0.24437927,58856.0,58849.0,0.1308]
[1724995709264,1.35409927,58856.0,58849.0,0.3608]
[1724995709471,0.11309796,58855.0,58849.0,0.3608]
[1724995709672,0.084953,58853.0,58849.0,0.3608]
[1724995709873,0.43905,58852.0,58849.0,0.3608]
[1724995710070,0.05215,58851.0,58849.0,0.3608]
[1724995710275,0.05215,58850.0,58849.0,0.3608]
[1724995710579,0.23994118,58850.0,58849.0,0.3608]
[1724995710963,0.23994118,58850.0,58849.0,0.3618]
[1724995712075,0.23994118,58850.0,58849.0,0.3628]
[1724995713186,0.08496,58848.0,58847.0,0.00025484]
[1724995713372,0.87287,58848.0,58847.0,0.00025484]
[1724995713572,2.23533159,58848.0,58847.0,0.00025484]
[1724995714382,2.23533159,58848.0,58847.0,0.00125484]
[1724995715081,2.23633159,58848.0,58847.0,0.00225484]
[1724995716982,2.28381381,58848.0,58847.0,0.00225484]
[1724995719784,2.19885381,58848.0,58833.0,0.004]
[1724995719989,0.084988,58829.0,58824.0,0.004]
[1724995720187,0.084988,58829.0,58823.0,0.2772762]
[1724995720383,0.17759249,58828.0,58826.0,0.3608]
[1724995720584,0.22974249,58828.0,58826.0,0.3608]
[1724995720889,0.22974249,58828.0,58824.0,0.3608]
[1724995721882,0.22974249,58828.0,58826.0,0.002]
[1724995722688,0.05217215,58827.0,58826.0,0.002]
[1724995722882,0.22976464,58828.0,58826.0,0.002]
[1724995723093,0.19364752,58827.0,58826.0,0.002]
[1724995723493,0.05217215,58828.0,58826.0,0.002]
[1724995723694,0.084988,58829.0,58824.0,0.453794]
[1724995723985,0.18298248,58828.0,58827.0,0.3608]
[1724995724192,0.23515463,58828.0,58827.0,0.3608]
[1724995724383,0.05217215,58828.0,58827.0,0.3608]
[1724995724586,0.00025484,58833.0,58827.0,0.3608]
[1724995724783,0.00025484,58833.0,58832.0,0.3608]
[1724995725189,0.18404547,58833.0,58832.0,0.3608]
[1724995725393,0.23621762,58833.0,58832.0,0.3608]
[1724995725881,0.23821762,58833.0,58832.0,0.3608]
[1724995727603,0.23921762,58833.0,58832.0,0.3608]
[1724995727892,0.18704547,58833.0,58832.0,0.3608]
[1724995729098,0.23921762,58833.0,58832.0,0.3608]
[1724995729783,0.32419962,58833.0,58832.0,0.3608]
[1724995731797,0.32419962,58833.0,58827.0,0.5126]
[1724995731798,0.084983,58832.0,58827.0,0.5126]
[1724995731996,0.13715515,58832.0,58827.0,0.5126]
[1724995732199,0.18210193,58831.0,58827.0,0.5126]
[1724995732408,0.23427408,58831.0,58827.0,0.52621523]
[1724995732885,0.23427408,58831.0,58830.0,0.3608]
[1724995733691,0.23427408,58831.0,58827.0,0.16641523]
[1724995733891,0.23427408,58831.0,58827.0,0.01361523]
[1724995734094,0.23427408,58831.0,58830.0,0.3608]
[1724995735092,0.31925808,58831.0,58830.0,0.3608]
[1724995735599,0.26908593,58831.0,58830.0,0.3608]
[1724995736692,0.32125981,58831.0,58830.0,0.3608]
[1724995736894,0.32325981,58831.0,58830.0,0.3608]
[1724995737395,0.27108593,58831.0,58830.0,0.3608]
[1724995737796,0.35606993,58831.0,58830.0,0.3608]
[1724995737999,0.18610193,58831.0,58816.0,0.3608]
[1724995738201,0.29,58823.0,58819.0,0.22587122]
[1724995738599,0.18114417,58822.0,58819.0,0.22587122]
[1724995738801,0.26614117,58822.0,58819.0,0.22587122]
[1724995740198,0.26614117,58822.0,58821.0,0.00717005]
[1724995740603,0.26614117,58822.0,58821.0,0.01517005]
[1724995740802,0.38974117,58822.0,58821.0,0.01517005]
[1724995742205,0.38974117,58822.0,58821.0,0.00917005]
[1724995742598,0.44192248,58822.0,58821.0,0.00917005]
[1724995743107,0.44192248,58822.0,58821.0,0.00417005]
[1724995743809,0.38974117,58822.0,58821.0,0.00417005]
[1724995745017,0.26614117,58822.0,58821.0,0.00417005]
[1724995747522,0.3183224,58822.0,58821.0,0.00417005]
[1724995752624,0.05218123,58822.0,58821.0,0.95996905]
[1724995752823,0.21839316,58839.0,58824.0,0.084994]
[1724995752824,0.34243607,58833.0,58824.0,0.084994]
[1724995753029,0.05218123,58832.0,58829.0,0.3608]
[1724995753227,0.24011572,58832.0,58829.0,0.3608]
[1724995753418,0.24011572,58832.0,58822.0,0.122]
[1724995753623,0.374989,58828.0,58827.0,0.3608]
[1724995753922,0.60514803,58828.0,58826.0,0.3608]
[1724995754122,0.05218123,58827.0,58826.0,0.3608]
[1724995754324,0.05118123,58827.0,58826.0,0.3608]
[1724995754626,0.22915903,58827.0,58826.0,0.3608]
[1724995755921,0.1779778,58827.0,58826.0,0.3608]
[1724995756525,0.1829778,58827.0,58826.0,0.3608]
[1724995757527,0.1829778,58827.0,58826.0,0.445792]
[1724995758422,0.1829778,58827.0,58826.0,0.806592]
[1724995758629,0.005,58827.0,58826.0,1.916552]
[1724995759422,0.0571677,58827.0,58826.0,1.916552]
[1724995759620,0.0571677,58827.0,58826.0,1.93045077]
[1724995760529,0.18992595,58827.0,58826.0,1.93045077]
[1724995761232,0.005,58827.0,58826.0,1.93045077]
[1724995761623,0.005,58827.0,58826.0,2.08033077]
[1724995761818,0.005,58827.0,58826.0,1.48033077]
[1724995762320,0.005,58827.0,58826.0,0.82049077]
[1724995762525,0.005,58827.0,58826.0,1.48033077]
[1724995762725,0.005,58827.0,58826.0,0.88537877]
[1724995763031,0.005,58827.0,58826.0,1.39533877]
[1724995763237,0.005,58827.0,58826.0,0.52457877]
[1724995763425,0.295,58827.0,58826.0,0.37469877]
[1724995763730,0.295,58827.0,58826.0,0.3608]
[1724995763731,0.61403578,58827.0,58826.0,0.3608]
[1724995765726,0.084995,58824.0,58822.0,0.01333511]
[1724995765926,0.084995,58824.0,58821.0,0.15005005]
[1724995766136,0.26799624,58823.0,58821.0,0.16397439]
[1724995766333,0.0521677,58822.0,58821.0,0.16397439]
[1724995766724,0.084997,58823.0,58821.0,0.16397439]
[1724995767030,0.084997,58823.0,58822.0,0.001]
[1724995767532,0.27347087,58823.0,58822.0,0.001]
[1724995767725,0.32563857,58823.0,58822.0,0.001]
[1724995769436,0.083997,58822.0,58821.0,0.01609439]
[1724995769628,0.1361647,58822.0,58821.0,0.01609439]
[1724995770236,0.082997,58822.0,58821.0,0.00017005]
[1724995770436,0.31239207,58822.0,58821.0,0.00217005]
[1724995770630,0.44629207,58822.0,58821.0,0.00217005]
[1724995772430,0.24922246,58822.0,58821.0,0.00417005]
[1724995773228,0.33421946,58822.0,58821.0,0.00417005]
[1724995775442,0.41921646,58822.0,58821.0,0.00417005]
[1724995777332,0.47140449,58822.0,58821.0,0.00417005]
[1724995780345,0.47140458,58822.0,58821.0,0.00417005]
[1724995782137,0.63806781,58822.0,58821.0,0.00417005]
[1724995782745,0.59140458,58822.0,58821.0,0.00417005]
[1724995785148,0.59140461,58822.0,58821.0,0.00417005]
[1724995786246,0.95220461,58822.0,58821.0,0.00417005]
[1724995786837,0.170038,58807.0,58802.0,0.3213]
[1724995787047,0.170038,58807.0,58793.0,0.3608]
[1724995787048,0.4808,58807.0,58793.0,0.3608]
[1724995787349,0.565838,58794.0,58792.0,0.1346]
[1724995787537,0.565838,58794.0,58788.0,0.1242]
[1724995787538,0.12,58794.0,58788.0,0.1242]
[1724995787735,0.44583,58800.0,58788.0,0.13783091]
[1724995787736,0.12,58789.0,58788.0,0.13783091]
[1724995787941,0.12,58789.0,58788.0,0.01363091]
[1724995788236,0.31441085,58789.0,58786.0,0.3213]
[1724995788545,0.31341085,58789.0,58786.0,0.3351356]
[1724995789453,0.31341085,58789.0,58788.0,0.3658]
[1724995789653,0.31341085,58789.0,58788.0,0.005]
[1724995789949,0.19341085,58789.0,58788.0,0.01]
[1724995790142,0.19341085,58789.0,58788.0,0.005]
[1724995790336,0.19341085,58789.0,58786.0,0.3421356]
[1724995790543,0.19441085,58789.0,58786.0,0.3491356]
[1724995791049,0.19341085,58789.0,58788.0,0.005]
[1724995791557,0.05220752,58794.0,58788.0,0.3658]
[1724995791756,0.00025506,58797.0,58789.0,0.29]
[1724995792056,0.18040997,58796.0,58789.0,0.29]
[1724995792852,0.001,58789.0,58788.0,0.3658]
[1724995793356,0.18040997,58796.0,58789.0,0.004]
[1724995793846,0.18040997,58796.0,58788.0,0.3658]
[1724995794044,0.18040997,58796.0,58788.0,0.3708]
[1724995794345,0.18040997,58796.0,58795.0,0.3608]
[1724995794649,0.05246258,58797.0,58795.0,1.045836]
[1724995794856,0.00025506,58797.0,58796.0,0.2577]
[1724995795049,0.00025506,58797.0,58796.0,0.76794]
[1724995795555,0.00025506,58797.0,58796.0,1.36794]
[1724995796357,0.00425506,58797.0,58796.0,1.36794]
[1724995797441,0.00825506,58797.0,58796.0,1.36794]
[1724995797641,0.00825506,58797.0,58796.0,1.452975]
[1724995798456,0.00825506,58797.0,58796.0,1.46638916]
[1724995800948,0.445786,58830.0,58797.0,0.5102]
[1724995801144,0.084989,58829.0,58820.0,0.3608]
[1724995801359,0.17781051,58822.0,58820.0,0.3608]
[1724995801660,0.084998,58822.0,58820.0,0.3608]
[1724995801859,0.084998,58822.0,58804.0,0.29]
[1724995801860,0.4929,58821.0,58818.0,0.14984]
[1724995802068,0.29,58819.0,58815.0,0.00025506]
[1724995802362,0.3608,58816.0,58815.0,0.00025506]
[1724995802862,0.54491601,58816.0,58815.0,0.00025506]
[1724995803154,0.18411601,58816.0,58815.0,0.00025506]
[1724995803557,0.18680857,58817.0,58815.0,0.00025506]
[1724995803758,0.006,58821.0,58820.0,0.086]
[1724995804061,0.006,58821.0,58820.0,0.4468]
[1724995804359,0.006,58821.0,58820.0,0.4458]
[1724995804550,0.006,58821.0,58820.0,1.55584]
[1724995805157,0.006,58821.0,58820.0,1.55684]
[1724995805359,0.00025506,58827.0,58820.0,1.47184]
[1724995805547,0.00025506,58827.0,58826.0,0.3608]
[1724995805751,0.00025506,58827.0,58826.0,0.51064]
[1724995805952,0.1858503,58827.0,58826.0,0.51064]
[1724995806251,0.00025506,58827.0,58826.0,0.51064]
[1724995806453,0.00025506,58827.0,58826.0,0.63774]
[1724995807152,0.00025506,58827.0,58826.0,0.63874]
[1724995807864,0.00425506,58827.0,58826.0,0.63974]
[1724995809364,0.00425506,58827.0,58826.0,0.4899]
[1724995809564,0.00425506,58827.0,58826.0,0.6397]
[1724995811256,0.128,58842.0,58826.0,1.74966]
[1724995811459,0.29,58839.0,58832.0,0.3608]
[1724995811758,0.2657,58838.0,58832.0,0.3608]
[1724995811964,0.29,58834.0,58832.0,0.3608]
[1724995812163,0.29,58834.0,58833.0,0.1498]
[1724995812470,0.24815945,58834.0,58833.0,0.1498]
[1724995812659,0.24815945,58834.0,58832.0,0.3608]
[1724995812857,0.05216796,58833.0,58832.0,0.3608]
[1724995813055,0.19599149,58834.0,58827.0,0.00025506]
[1724995813260,0.29,58830.0,58827.0,0.00025506]
[1724995813458,0.18586829,58829.0,58828.0,0.1498]
[1724995813666,0.36620551,58829.0,58828.0,0.1498]
[1724995814056,0.31403722,58829.0,58828.0,0.1498]
[1724995815470,0.39902422,58829.0,58828.0,0.1508]
[1724995815669,1.50898422,58829.0,58828.0,0.001]
[1724995815865,0.90898422,58829.0,58828.0,0.001]
[1724995816776,0.40002422,58829.0,58828.0,0.002]
[1724995816969,0.90998422,58829.0,58828.0,0.002]
[1724995817968,0.99497122,58829.0,58828.0,0.002]
[1724995818278,0.99497122,58829.0,58811.0,0.455]
[1724995818279,0.085003,58818.0,58817.0,0.3608]
[1724995818464,0.375003,58818.0,58817.0,0.3608]
[1724995818663,0.57101892,58818.0,58817.0,0.3608]
[1724995819469,0.57201892,58818.0,58817.0,0.3618]
[1724995820273,0.28201892,58818.0,58817.0,0.3618]
[1724995820574,0.28301892,58818.0,58817.0,0.3618]
[1724995820876,0.28301892,58818.0,58817.0,0.001]
[1724995821073,0.93381892,58818.0,58817.0,0.001]
[1724995821982,1.01882192,58818.0,58817.0,0.001]
[1724995822373,0.17002,58813.0,58812.0,0.00025506]
[1724995822578,0.82082,58813.0,58812.0,0.00025506]
[1724995822884,0.99882004,58813.0,58812.0,0.00025506]
[1724995823674,0.99982004,58813.0,58812.0,0.00025506]
[1724995823976,1.00082004,58813.0,58812.0,0.00025506]
[1724995824170,1.0530163,58813.0,58812.0,0.00025506]
[1724995824574,1.05301583,58813.0,58812.0,0.00025506]
[1724995825685,1.05301696,58813.0,58812.0,0.00025506]
[1724995825872,1.00082004,58813.0,58812.0,0.00025506]
[1724995827274,1.05301662,58813.0,58812.0,0.00025506]
[1724995827778,1.0530178,58813.0,58812.0,0.00025506]
[1724995828082,2.1630978,58813.0,58812.0,6e-08]
[1724995828388,0.085045,58789.0,58788.0,0.3608]
[1724995829486,0.084045,58789.0,58788.0,0.3608]
[1724995830184,0.083045,58789.0,58788.0,0.3608]
[1724995830777,0.083045,58789.0,58788.0,0.3668]
[1724995830974,0.083045,58789.0,58788.0,0.006]
[1724995831295,0.083045,58789.0,58788.0,0.011]
[1724995831577,0.083045,58789.0,58788.0,0.3718]
[1724995831787,0.08529306,58794.0,58788.0,0.3718]
[1724995832278,0.17880538,58793.0,58788.0,0.3718]
[1724995832583,0.23101396,58793.0,58788.0,0.3718]
[1724995832989,0.23101396,58793.0,58788.0,0.3668]
[1724995833172,0.23101396,58793.0,58788.0,0.3718]
[1724995833375,0.23101396,58793.0,58788.0,0.3658]
[1724995833574,0.085041,58792.0,58788.0,0.3718]
[1724995833780,0.13724958,58792.0,58788.0,0.3718]
[1724995833968,0.28147552,58791.0,58788.0,0.3718]
[1724995834167,0.05220726,58790.0,58788.0,0.3718]
[1724995834680,0.27740335,58789.0,58788.0,0.3718]
[1724995834882,0.27740335,58789.0,58788.0,0.011]
[1724995835076,0.085045,58789.0,58788.0,0.005]
[1724995835380,0.31552261,58789.0,58788.0,0.011]
[1724995835678,0.67632261,58789.0,58788.0,0.011]
[1724995835883,0.31552261,58789.0,58788.0,0.011]
[1724995836078,0.31552346,58789.0,58788.0,0.011]
[1724995836272,0.26331282,58789.0,58788.0,0.011]
[1724995837169,0.26331282,58789.0,58788.0,0.005]
[1724995837381,0.26331282,58789.0,58788.0,0.011]
[1724995839380,0.17826782,58789.0,58788.0,0.011]
[1724995839579,0.26331282,58789.0,58788.0,0.011]
[1724995839978,0.085045,58789.0,58788.0,0.011]
[1724995840179,0.27418804,58789.0,58788.0,0.011]
[1724995840380,0.27418804,58789.0,58788.0,0.3718]
[1724995840683,0.27418804,58789.0,58788.0,0.011]
[1724995844289,0.32639966,58789.0,58788.0,0.011]
[1724995848499,0.32639972,58789.0,58788.0,0.011]
[1724995851193,0.27418804,58789.0,58788.0,0.011]
[1724995853400,0.39918804,58789.0,58788.0,0.011]
[1724995855800,0.085061,58778.0,58773.0,0.3213]
[1724995856004,0.085063,58777.0,58772.0,0.08507]
[1724995856300,0.28204348,58777.0,58772.0,0.08507]
[1724995856496,0.085063,58777.0,58774.0,0.01331792]
[1724995856902,0.26645886,58777.0,58774.0,0.01331792]
[1724995858005,0.26645886,58777.0,58776.0,0.3698]
[1724995858604,0.26745886,58777.0,58776.0,0.3778]
[1724995859288,0.26845886,58777.0,58776.0,0.3768]
[1724995859489,0.18339586,58777.0,58776.0,0.3768]
[1724995860203,0.002,58777.0,58776.0,0.972264]
[1724995861497,0.002,58777.0,58776.0,0.461864]
[1724995861699,0.002,58777.0,58776.0,0.3768]
[1724995861902,0.19107587,58777.0,58776.0,0.3768]
[1724995863904,0.002,58777.0,58776.0,0.461864]
[1724995865793,0.002,58777.0,58776.0,1.572264]
[1724995866906,0.002,58777.0,58776.0,0.972264]
[1724995867408,0.002,58777.0,58776.0,1.862264]
[1724995868206,0.002,58777.0,58776.0,0.972264]
[1724995868716,0.002,58777.0,58776.0,0.461864]
[1724995870403,0.002,58777.0,58776.0,0.611704]
[1724995870604,0.19552964,58777.0,58776.0,0.52664]
[1724995871003,0.19552964,58777.0,58776.0,0.3768]
[1724995871209,0.24674348,58777.0,58776.0,0.3708]
[1724995872500,0.24674348,58777.0,58776.0,0.3638]
[1724995872707,0.24574348,58777.0,58776.0,0.3658]
[1724995873305,0.69160648,58777.0,58776.0,0.005]
[1724995873511,0.46450648,58777.0,58776.0,0.005]
[1724995874818,0.46750648,58777.0,58772.0,0.3608]
[1724995875005,0.05221384,58776.0,58772.0,0.3608]
[1724995875411,0.19481905,58775.0,58772.0,0.3608]
[1724995876919,0.19481905,58775.0,58772.0,0.3618]
[1724995878015,0.19481905,58775.0,58772.0,0.4818]
[1724995881011,0.12,58774.0,58772.0,0.3618]
[1724995881306,0.24951266,58773.0,58772.0,0.3618]
[1724995884018,0.24951266,58773.0,58772.0,0.001]
[1724995884317,0.33458066,58773.0,58772.0,0.001]
[1724995885710,0.33458168,58773.0,58772.0,0.001]
[1724995886319,0.05222241,58773.0,58772.0,0.08607]
[1724995886516,0.08531306,58780.0,58772.0,0.21497]
[1724995886719,0.08531306,58780.0,58777.0,0.3608]
[1724995886912,0.18734578,58779.0,58777.0,0.3608]
[1724995887115,0.32462819,58779.0,58777.0,0.3608]
[1724995887318,0.05222241,58778.0,58777.0,0.3608]
[1724995887725,0.23398489,58778.0,58777.0,0.3608]
[1724995888615,0.03561416,58778.0,58777.0,0.3608]
[1724995888918,0.005,58778.0,58777.0,0.37423265]
[1724995889316,0.01,58778.0,58777.0,0.37423265]
[1724995889707,0.16856088,59246.0,58777.0,0.37423265]
[1724995889708,0.06102028,58795.0,58777.0,0.37423265]
[1724995889912,0.004,58794.0,58792.0,0.08504]
[1724995890116,0.1243,58802.0,58793.0,0.51064]
[1724995890321,0.27894641,58799.0,58798.0,0.3608]
[1724995890821,0.1897461,58799.0,58798.0,0.3608]
[1724995891018,0.1897461,58799.0,58798.0,0.51064]
[1724995891219,0.1897461,58801.0,58798.0,0.51064]
[1724995891412,0.1243,58802.0,58798.0,0.51064]
[1724995891913,0.009,58799.0,58798.0,0.51164]
[1724995892323,0.20173361,58799.0,58798.0,0.51164]
[1724995892622,0.20173361,58799.0,58798.0,0.51264]
[1724995893123,0.20173361,58799.0,58798.0,0.51164]
[1724995893328,0.20273361,58799.0,58798.0,0.51264]
[1724995893628,0.001,58799.0,58798.0,1.31284]
[1724995893809,0.00025506,58804.0,58803.0,0.085025]
[1724995894012,0.00025506,58804.0,58803.0,0.3608]
[1724995894214,0.18801047,58804.0,58803.0,0.3608]
[1724995894709,0.18801047,58804.0,58803.0,0.51064]
[1724995895118,0.18801047,58804.0,58803.0,0.3608]
[1724995895421,0.18801047,58804.0,58803.0,0.5106]
[1724995895816,0.18801047,58804.0,58803.0,0.3608]
[1724995896016,0.18801047,58804.0,58803.0,0.5106]
[1724995896323,0.0564486,58804.0,58803.0,0.5106]
[1724995896523,0.0604486,58804.0,58803.0,0.5106]
[1724995896816,0.0604486,58804.0,58803.0,0.3608]
[1724995897028,0.24116422,58804.0,58803.0,0.5106]
[1724995897210,0.24516422,58804.0,58803.0,0.5106]
[1724995897615,0.24416422,58804.0,58803.0,0.5106]
[1724995898613,0.24016422,58804.0,58803.0,0.3608]
[1724995898831,0.24416422,58804.0,58803.0,0.5106]
[1724995899119,0.085031,58799.0,58798.0,0.3608]
[1724995899320,0.085035,58796.0,58795.0,0.1498]
[1724995899621,0.33346012,58796.0,58795.0,0.1498]
[1724995899927,0.33246012,58796.0,58795.0,0.1498]
[1724995900612,0.25342512,58796.0,58795.0,0.1508]